Workbook

Sheet 2019-2021
D2: 2019 | E2: 2020 | F2: 2021 | H2: 2021
B3: Regulatory Net Income | D3: -912456 | E3: -2466084.91 | F3: -2543600.88 | H3: =-2543600.88+'CVVA Summary'!C21 -> -2422612.433
B4: Addback: Interest per FS | C4: A | D4: =D28 -> -90 | E4: =E28 -> -46553 | F4: =F28 -> 872882.85 | H4: =H28 -> 872882.85
B5: Subtract: Deemed interest | C5: B | D5: =-D26 -> -1404.917573 | E5: =-E26 -> -623535.2747 | F5: =-F26 -> -1406960.253 | H5: =-H26 -> -1406960.253
B6: Deemed Net Income | D6: =SUM(D3:D5) -> -913950.9176 | E6: =SUM(E3:E5) -> -3136173.185 | F6: -3077678.283 | H6: =SUM(H3:H5) -> -2956689.836
B8: Balance Sheet Equity | D8: 11093050.7 | E8: 13401613.84 | F8: 26531479.05 | H8: 26531479.05
B10: Return on Equity based on BS | D10: =D3/D8 -> -0.0822547399 | E10: =E3/E8 -> -0.1840140254 | F10: -0.09587105473 | H10: =H3/H8 -> -0.09131086994
B13: Opening Ratebase | D13: 0 | E13: =D14 -> 122039.4 | F13: =E14 -> 54041900.38 | H13: =F13 -> 54041900.38
B14: Closing Ratebase | D14: =(D32-D33)+(D34-D35) -> 122039.4 | E14: =(E32-E33)+(E34-E35) -> 54041900.38 | F14: 68174938.85 | H14: =(H32-H33)+(H34-H35) -> 68174938.85
B15: Average Ratebase | D15: =AVERAGE(D13:D14) -> 61019.7 | E15: =AVERAGE(E13:E14) -> 27081969.89 | F15: 61108419.61 | H15: =AVERAGE(H13:H14) -> 61108419.61
B17: Equity | D17: 0.36 | E17: 0.36 | F17: 0.36 | H17: 0.36
B18: ST - 1.76% | D18: 0.04 | E18: 0.04 | F18: 0.04 | H18: 0.04
B19: LTD - 3.72% | D19: 0.6 | E19: 0.6 | F19: 0.6 | H19: 0.6
B20: Weighted Debt | D20: =D18*1.76%/64%+(D19*3.72%/64%) -> 0.035975 | E20: =E18*1.76%/64%+(E19*3.72%/64%) -> 0.035975 | F20: 0.035975 | H20: =H18*1.76%/64%+(H19*3.72%/64%) -> 0.035975
B22: Equity Ratebase | D22: =D15*D17 -> 21967.092 | E22: =E15*E17 -> 9749509.16 | F22: 21999031.06 | H22: =H15*H17 -> 21999031.06
B23: Debt Ratebase | D23: =D15*(D19+D18) -> 39052.608 | E23: =E15*(E19+E18) -> 17332460.73 | F23: =F15*(F19+F18) -> 39109388.55 | H23: =H15*(H19+H18) -> 39109388.55
D24: =SUM(D22:D23) -> 61019.7 | E24: =SUM(E22:E23) -> 27081969.89 | F24: 61108419.61 | H24: =SUM(H22:H23) -> 61108419.61
B26: Deemed Interest | C26: B | D26: =D20*D23 -> 1404.917573 | E26: =E20*E23 -> 623535.2747 | F26: =F20*F23 -> 1406960.253 | H26: =H20*H23 -> 1406960.253
B28: LT & ST interest per statements | C28: A | D28: -90 | E28: -46553 | F28: =844997.85+27885 -> 872882.85 | H28: =844997.85+27885 -> 872882.85
B30: Return on Equity based on deemed equity | D30: =D6/D22 -> -41.60545773 | E30: =E6/E22 -> -0.3216749821 | F30: -0.139900629 | H30: =H6/H22 -> -0.1344009119
B32: PP&E & intangibles per FS | D32: 38974880.98 | E32: 73465690.22 | F32: 93648611.38 | H32: 93648611.38
B33: CWIP | D33: 38852841.58 | E33: 6441862 | F33: 7412824 | H33: 7412824
B34: Deferred Revenue per FS | D34: -5180212.62 | E34: -23276572 | F34: -22443427 | H34: -22443427
B35: CWIP | D35: -5180212.62 | E35: -10294644.16 | F35: -4382578.47 | H35: -4382578.47

Sheet 2022-2028
A1: WITHOUT CVVA | B1: =#REF! ->  | C1: =#REF! ->  | D1: =#REF! ->  | E1: 2022 | F1: 2023 | G1: 2024 | H1: 2025 | I1: 2026 | J1: 2027 | K1: 2028 | M1: WITH CVVA | N1: =#REF! ->  | O1: =#REF! ->  | P1: =#REF! ->  | Q1: 2022 | R1: 2023 | S1: 2024 | T1: 2025 | U1: 2026 | V1: 2027 | W1: 2028
A3: Income Statement | M3: Income Statement
A4: Non-distribution Revenue | B4: 318.8792648 | C4: 1273.195539 | D4: 2046.559935 | E4: 2677.668271 | F4: 3093.303448 | G4: 3390.654054 | H4: 3497.34777 | I4: 3543.60504 | J4: 3587.933854 | K4: 3627.350232 | M4: Non-distribution Revenue | N4: 318.8792648 | O4: 1273.195539 | P4: 2046.559935 | Q4: 2677.668271 | R4: 3093.303448 | S4: 3390.654054 | T4: 3497.34777 | U4: 3543.60504 | V4: 3587.933854 | W4: 3627.350232
A5: Less: Non-distribution Cost | B5: -318.8792648 | C5: -1273.195539 | D5: -2046.559935 | E5: -2677.668271 | F5: -3093.303448 | G5: -3390.654054 | H5: -3497.34777 | I5: -3543.60504 | J5: -3587.933854 | K5: -3627.350232 | M5: Less: Non-distribution Cost | N5: -318.8792648 | O5: -1273.195539 | P5: -2046.559935 | Q5: -2677.668271 | R5: -3093.303448 | S5: -3390.654054 | T5: -3497.34777 | U5: -3543.60504 | V5: -3587.933854 | W5: -3627.350232
A6: Net Non-distribution Revenue | B6: =SUM(B4:B5) -> 0 | C6: 0 | D6: 0 | E6: 0 | F6: 0 | G6: 0 | H6: 0 | I6: 0 | J6: 0 | K6: 0 | M6: Net Non-distribution Revenue | N6: =SUM(N4:N5) -> 0 | O6: 0 | P6: 0 | Q6: 0 | R6: 0 | S6: 0 | T6: 0 | U6: 0 | V6: 0 | W6: 0
A8: Distribution Revenue | M8: Distribution Revenue
A9: Rate 1 | B9: 315.7907923 | C9: 1609.050437 | D9: 2863.928027 | E9: =('CVVA Summary'!D3+'CVVA Summary'!D6+'CVVA Summary'!D9)/1000 -> 1903.504494 | F9: =('CVVA Summary'!E3+'CVVA Summary'!E6+'CVVA Summary'!E9)/1000 -> 3111.887593 | G9: =('CVVA Summary'!F3+'CVVA Summary'!F6+'CVVA Summary'!F9)/1000 -> 4227.252273 | H9: =('CVVA Summary'!G3+'CVVA Summary'!G6+'CVVA Summary'!G9)/1000 -> 4699.616885 | I9: =('CVVA Summary'!H3+'CVVA Summary'!H6+'CVVA Summary'!H9)/1000 -> 4803.879464 | J9: =('CVVA Summary'!I3+'CVVA Summary'!I6+'CVVA Summary'!I9)/1000 -> 4920.331915 | K9: =('CVVA Summary'!J3+'CVVA Summary'!J6+'CVVA Summary'!J9)/1000 -> 5029.308211 | M9: Rate 1 | N9: 315.7907923 | O9: 1609.050437 | P9: 2863.928027 | Q9: =('CVVA Summary'!D4+'CVVA Summary'!D7+'CVVA Summary'!D10)/1000 -> 2397.916174 | R9: =('CVVA Summary'!E4+'CVVA Summary'!E7+'CVVA Summary'!E10)/1000 -> 3920.896749 | S9: =('CVVA Summary'!F4+'CVVA Summary'!F7+'CVVA Summary'!F10)/1000 -> 5357.386729 | T9: =('CVVA Summary'!G4+'CVVA Summary'!G7+'CVVA Summary'!G10)/1000 -> 5976.6145 | U9: =('CVVA Summary'!H4+'CVVA Summary'!H7+'CVVA Summary'!H10)/1000 -> 6108.78997 | V9: =('CVVA Summary'!I4+'CVVA Summary'!I7+'CVVA Summary'!I10)/1000 -> 6255.993518 | W9: =('CVVA Summary'!J4+'CVVA Summary'!J7+'CVVA Summary'!J10)/1000 -> 6395.513605
A10: Rate 6 | B10: 57.8041222 | C10: 234.4736532 | D10: 468.6701682 | E10: =('CVVA Summary'!D12+'CVVA Summary'!D15)/1000 -> 231.4977408 | F10: =('CVVA Summary'!E12+'CVVA Summary'!E15)/1000 -> 399.2534444 | G10: =('CVVA Summary'!F12+'CVVA Summary'!F15)/1000 -> 544.5087518 | H10: =('CVVA Summary'!G12+'CVVA Summary'!G15)/1000 -> 545.2947034 | I10: =('CVVA Summary'!H12+'CVVA Summary'!H15)/1000 -> 553.2165679 | J10: =('CVVA Summary'!I12+'CVVA Summary'!I15)/1000 -> 562.2316551 | K10: =('CVVA Summary'!J12+'CVVA Summary'!J15)/1000 -> 670.3687981 | M10: Rate 6 | N10: 57.8041222 | O10: 234.4736532 | P10: 468.6701682 | Q10: =('CVVA Summary'!D13+'CVVA Summary'!D16)/1000 -> 156.1138251 | R10: =('CVVA Summary'!E13+'CVVA Summary'!E16)/1000 -> 405.1407703 | S10: =('CVVA Summary'!F13+'CVVA Summary'!F16)/1000 -> 548.6748407 | T10: =('CVVA Summary'!G13+'CVVA Summary'!G16)/1000 -> 563.8981183 | U10: =('CVVA Summary'!H13+'CVVA Summary'!H16)/1000 -> 572.0893482 | V10: =('CVVA Summary'!I13+'CVVA Summary'!I16)/1000 -> 581.6758906 | W10: =('CVVA Summary'!J13+'CVVA Summary'!J16)/1000 -> 687.3600059
A11: Rate 11 | B11: 26.17873339 | C11: 54.26195142 | D11: 121.3944868 | E11: 207.2571183 | F11: 231.1143726 | G11: 292.7885616 | H11: 297.1694155 | I11: 301.6159481 | J11: 306.129144 | K11: 310.7100026 | M11: Rate 11 | N11: 26.17873339 | O11: 54.26195142 | P11: 121.3944868 | Q11: 207.2571183 | R11: 231.1143726 | S11: 292.7885616 | T11: 297.1694155 | U11: 301.6159481 | V11: 306.129144 | W11: 310.7100026
A12: Rate 16 | B12: 189.5838093 | C12: 1151.949142 | D12: 1166.578896 | E12: 1181.394448 | F12: 1475.826364 | G12: 1495.496778 | H12: 1515.462095 | I12: 1535.726736 | J12: 1556.295189 | K12: 1577.172008 | M12: Rate 16 | N12: 189.5838093 | O12: 1151.949142 | P12: 1166.578896 | Q12: 1181.394448 | R12: 1475.826364 | S12: 1495.496778 | T12: 1515.462095 | U12: 1535.726736 | V12: 1556.295189 | W12: 1577.172008
A13: Total Distribution Revenue | B13: =SUM(B9:B12) -> 589.3574572 | C13: =SUM(C9:C12) -> 3049.735184 | D13: 4620.571579 | E13: 3523.653802 | F13: 5218.081774 | G13: 6560.046365 | H13: 7057.5431 | I13: 7194.438716 | J13: 7344.987903 | K13: 7587.55902 | M13: Total Distribution Revenue | N13: =SUM(N9:N12) -> 589.3574572 | O13: =SUM(O9:O12) -> 3049.735184 | P13: 4620.571579 | Q13: 3942.681566 | R13: 6032.978256 | S13: 7694.346909 | T13: 8353.144129 | U13: 8518.222003 | V13: 8700.093741 | W13: 8970.755622
A15: Less: Distribution O&M | B15: -555.3495733 | C15: -1442.886221 | D15: -1715.428071 | E15: -1813.254908 | F15: -1894.890929 | G15: -2067.255337 | H15: -2103.156458 | I15: -2136.736822 | J15: -2170.608205 | K15: -2460.716292 | M15: Less: Distribution O&M | N15: -555.3495733 | O15: -1442.886221 | P15: -1715.428071 | Q15: -1813.254908 | R15: -1894.890929 | S15: -2067.255337 | T15: -2103.156458 | U15: -2136.736822 | V15: -2170.608205 | W15: -2460.716292
A16: Property Taxes | B16: -331.2186812 | C16: -490.1762393 | D16: -546.7012192 | E16: -565.324383 | F16: -581.5868961 | G16: -590.0554385 | H16: -623.7409517 | I16: -626.2768862 | J16: -628.7596173 | K16: -630.0247608 | M16: Property Taxes | N16: -331.2186812 | O16: -490.1762393 | P16: -546.7012192 | Q16: -565.324383 | R16: -581.5868961 | S16: -590.0554385 | T16: -623.7409517 | U16: -626.2768862 | V16: -628.7596173 | W16: -630.0247608
A17: EBITDA | B17: =SUM(B13:B16)+B6 -> -297.2107973 | C17: =SUM(C13:C16)+C6 -> 1116.672723 | D17: 2358.442288 | E17: 1145.07451 | F17: 2741.603948 | G17: 3902.735589 | H17: 4330.64569 | I17: 4431.425008 | J17: 4545.620081 | K17: 4496.817966 | M17: EBITDA | N17: =SUM(N13:N16)+N6 -> -297.2107973 | O17: =SUM(O13:O16)+O6 -> 1116.672723 | P17: 2358.442288 | Q17: 1564.102275 | R17: 3556.50043 | S17: 5037.036134 | T17: 5626.246719 | U17: 5755.208295 | V17: 5900.725919 | W17: 5880.014569
A19: Less: Depreciation | B19: -691.5907519 | C19: -1326.520276 | D19: -1709.410185 | E19: -1778.364476 | F19: -1826.157349 | G19: -1860.667851 | H19: -1878.267312 | I19: -1888.233857 | J19: -1925.378153 | K19: -1934.199903 | M19: Less: Depreciation | N19: -691.5907519 | O19: -1326.520276 | P19: -1709.410185 | Q19: -1778.364476 | R19: -1826.157349 | S19: -1860.667851 | T19: -1878.267312 | U19: -1888.233857 | V19: -1925.378153 | W19: -1934.199903
A20: Less; Depreciation (Out of CIP Scope) | E20: =E51*E66 -> -28.13666391 | F20: =F51*F66 -> -96.94875577 | G20: -208.1801913 | H20: -300.7691704 | I20: -343.799845 | J20: -395.6374787 | K20: -452.1995341 | M20: Less; Depreciation (Out of CIP Scope) | Q20: =E20 -> -28.13666391 | R20: =F20 -> -96.94875577 | S20: -208.1801913 | T20: -300.7691704 | U20: -343.799845 | V20: -395.6374787 | W20: -452.1995341
A21: Add: Capitalized IDC | B21: 650.5156319 | C21: 180.1327785 | D21: 45.19014708 | E21: 26.76904116 | F21: 23.55803753 | G21: 13.02948026 | H21: 6.16786305 | I21: 5.14231567 | J21: 12.53068862 | K21: 2.938812267 | M21: Add: Capitalized IDC | N21: 650.5156319 | O21: 180.1327785 | P21: 45.19014708 | Q21: 26.76904116 | R21: 23.55803753 | S21: 13.02948026 | T21: 6.16786305 | U21: 5.14231567 | V21: 12.53068862 | W21: 2.938812267
A22: EBIT | B22: =SUM(B19:B21)+B17 -> -338.2859173 | C22: -29.71477419 | D22: 694.2222503 | E22: -634.6575889 | F22: 842.0558804 | G22: 1846.917027 | H22: 2157.777071 | I22: 2204.533621 | J22: 2237.135138 | K22: 2113.357341 | M22: EBIT | N22: =SUM(N19:N21)+N17 -> -338.2859173 | O22: -29.71477419 | P22: 694.2222503 | Q22: -215.6298245 | R22: 1656.952363 | S22: 2981.217572 | T22: 3453.3781 | U22: 3528.316908 | V22: 3592.240976 | W22: 3496.553943
A24: Less: Interest Expense | B24: -563.5146945 | C24: -1248.344882 | D24: -1385.830044 | E24: -1403.209042 | F24: -1401.933455 | G24: -1388.911259 | H24: -1361.176634 | I24: -1326.798334 | J24: -1296.847612 | K24: -1265.077475 | M24: Less: Interest Expense | N24: -563.5146945 | O24: -1248.344882 | P24: -1385.830044 | Q24: -1403.209042 | R24: -1401.933455 | S24: -1388.911259 | T24: -1361.176634 | U24: -1326.798334 | V24: -1296.847612 | W24: -1265.077475
A25: Less: Cash Tax | B25: 0 | C25: 0 | D25: 0 | E25: 0 | F25: 0 | G25: 0 | H25: 0 | I25: 0 | J25: 0 | K25: 0 | M25: Less: Cash Tax | N25: 0 | O25: 0 | P25: 0 | Q25: 0 | R25: 0 | S25: 0 | T25: 0 | U25: 0 | V25: 0 | W25: 0
A26: Net Income | B26: =SUM(B24:B25)+B22 -> -901.8006118 | C26: -1278.059656 | D26: -691.6077936 | E26: -2037.86663 | F26: -559.877575 | G26: 458.0057684 | H26: 796.6004363 | I26: 877.7352867 | J26: 940.2875254 | K26: 848.2798661 | M26: Net Income | N26: =SUM(N24:N25)+N22 -> -901.8006118 | O26: -1278.059656 | P26: -691.6077936 | Q26: -1618.838866 | R26: 255.0189072 | S26: 1592.306313 | T26: 2092.201466 | U26: 2201.518574 | V26: 2295.393364 | W26: 2231.476468
A28: Balance Sheet | M28: Balance Sheet
A29: Cash | B29: 0 | C29: 2.910383046e-11 | D29: 1.455191523e-11 | E29: 2.50111043e-12 | F29: 2.50111043e-12 | G29: -1.341504685e-11 | H29: 7.048583939e-12 | I29: 1.750777301e-11 | J29: -1.29602995e-11 | K29: 1.38697942e-11 | M29: Cash | N29: 0 | O29: 2.910383046e-11 | P29: 1.455191523e-11 | Q29: 2.50111043e-12 | R29: 2.50111043e-12 | S29: -1.341504685e-11 | T29: 7.048583939e-12 | U29: 1.750777301e-11 | V29: -1.29602995e-11 | W29: 1.38697942e-11
A30: NWC | B30: 180.8171279 | C30: 300.121572 | D30: 346.1818118 | E30: 412.2553225 | F30: 423.2118685 | G30: 483.982856 | H30: 449.6539209 | I30: 496.3388914 | J30: 461.7563601 | K30: 545.9573326 | M30: NWC | N30: 180.8171279 | O30: 300.121572 | P30: 346.1818118 | Q30: 412.2553225 | R30: 423.2118685 | S30: 483.982856 | T30: 449.6539209 | U30: 496.3388914 | V30: 461.7563601 | W30: 545.9573326
A31: PP&E | B31: 57313.20011 | C31: 80778.90796 | D31: 81547.53155 | E31: 80996.59873 | F31: 80179.87919 | G31: 78613.86928 | H31: 76564.42723 | I31: 74435.3946 | J31: 72770.81159 | K31: 70446.21788 | M31: PP&E | N31: 57313.20011 | O31: 80778.90796 | P31: 81547.53155 | Q31: 80996.59873 | R31: 80179.87919 | S31: 78613.86928 | T31: 76564.42723 | U31: 74435.3946 | V31: 72770.81159 | W31: 70446.21788
A32: Assets | B32: =SUM(B29:B31) -> 57494.01724 | C32: 81079.02953 | D32: 81893.71336 | E32: 81408.85406 | F32: 80603.09106 | G32: 79097.85213 | H32: 77014.08115 | I32: 74931.73349 | J32: 73232.56795 | K32: 70992.17522 | M32: Assets | N32: =SUM(N29:N31) -> 57494.01724 | O32: 81079.02953 | P32: 81893.71336 | Q32: 81408.85406 | R32: 80603.09106 | S32: 79097.85213 | T32: 77014.08115 | U32: 74931.73349 | V32: 73232.56795 | W32: 70992.17522
A34: Deferred Revenue | B34: 61.4633637 | C34: 477.1610083 | D34: 825.5711225 | E34: 1033.648905 | F34: 1136.78884 | G34: 1126.230758 | H34: 1079.355099 | I34: 1032.853054 | J34: 986.8378888 | K34: 939.8456084 | M34: Deferred Revenue | N34: 61.4633637 | O34: 477.1610083 | P34: 825.5711225 | Q34: 1033.648905 | R34: 1136.78884 | S34: 1126.230758 | T34: 1079.355099 | U34: 1032.853054 | V34: 986.8378888 | W34: 939.8456084
A35: Assets and Regulatory Assets | B35: =B32+B34 -> 57555.48061 | C35: 81556.19054 | D35: 82719.28448 | E35: 82442.50296 | F35: 81739.8799 | G35: 80224.08289 | H35: 78093.43625 | I35: 75964.58654 | J35: 74219.40584 | K35: 71932.02082 | M35: Assets and Regulatory Assets | N35: =N32+N34 -> 57555.48061 | O35: 81556.19054 | P35: 82719.28448 | Q35: 82442.50296 | R35: 81739.8799 | S35: 80224.08289 | T35: 78093.43625 | U35: 75964.58654 | V35: 74219.40584 | W35: 71932.02082
A37: Contribution from Grant | B37: 8543.81793 | C37: 21590.65328 | D37: 21000.74459 | E37: 20410.8359 | F37: 19820.9272 | G37: 19231.01851 | H37: 18641.10982 | I37: 18051.20113 | J37: 17461.29244 | K37: 16871.38375 | M37: Contribution from Grant | N37: 8543.81793 | O37: 21590.65328 | P37: 21000.74459 | Q37: 20410.8359 | R37: 19820.9272 | S37: 19231.01851 | T37: 18641.10982 | U37: 18051.20113 | V37: 17461.29244 | W37: 16871.38375
A38: ST Operating Debt | B38: 1958.007972 | C38: 2379.53505 | D38: 2435.718751 | E38: 2439.920726 | F38: 2431.286554 | G38: 2394.673345 | H38: 2334.918853 | I38: 2275.221294 | J38: 2230.85102 | K38: 2164.831659 | M38: ST Operating Debt | N38: 1958.007972 | O38: 2379.53505 | P38: 2435.718751 | Q38: 2439.920726 | R38: 2431.286554 | S38: 2394.673345 | T38: 2334.918853 | U38: 2275.221294 | V38: 2230.85102 | W38: 2164.831659
A39: LT Debt | B39: 29431.58295 | C39: 36170.18676 | D39: 37361.35239 | E39: 37632.4598 | F39: 37606.08716 | G39: 37046.33093 | H39: 36103.13789 | I39: 35161.17247 | J39: 34449.6032 | K39: 33412.32049 | M39: LT Debt | N39: 29431.58295 | O39: 36170.18676 | P39: 37361.35239 | Q39: 37632.4598 | R39: 37606.08716 | S39: 37046.33093 | T39: 36103.13789 | U39: 35161.17247 | V39: 34449.6032 | W39: 33412.32049
A40: Liabilities | B40: =SUM(B37:B39) -> 39933.40885 | C40: 60140.37509 | D40: 60797.81572 | E40: 60483.21642 | F40: 59858.30091 | G40: 58672.02279 | H40: 57079.16657 | I40: 55487.59489 | J40: 54141.74666 | K40: 52448.5359 | M40: Liabilities | N40: =SUM(N37:N39) -> 39933.40885 | O40: 60140.37509 | P40: 60797.81572 | Q40: 60483.21642 | R40: 59858.30091 | S40: 58672.02279 | T40: 57079.16657 | U40: 55487.59489 | V40: 54141.74666 | W40: 52448.5359
A42: Retained Earnings | B42: -901.8006118 | C42: -2179.860268 | D42: -2871.468061 | E42: -2586.586714 | F42: -1621.875228 | G42: -326.0734774 | H42: 1168.3268 | I42: 2789.129176 | J42: 4506.794088 | K42: 6065.944631 | M42: Retained Earnings | N42: -901.8006118 | O42: -2179.860268 | P42: -2871.468061 | Q42: -2586.586714 | R42: -1621.875228 | S42: -326.0734774 | T42: 1168.3268 | U42: 2789.129176 | V42: 4506.794088 | W42: 6065.944631
A43: Share Capital | B43: 18523.87236 | C43: 23595.67572 | D43: 24792.93682 | E43: 24545.87325 | F43: 23503.45422 | G43: 21878.13358 | H43: 19845.94288 | I43: 17687.86247 | J43: 15570.8651 | K43: 13417.5403 | M43: Share Capital | N43: 18523.87236 | O43: 23595.67572 | P43: 24792.93682 | Q43: 24545.87325 | R43: 23503.45422 | S43: 21878.13358 | T43: 19845.94288 | U43: 17687.86247 | V43: 15570.8651 | W43: 13417.5403
A44: Equities | B44: =SUM(B42:B43) -> 17622.07175 | C44: 21415.81545 | D44: 21921.46876 | E44: 21959.28654 | F44: 21881.57899 | G44: 21552.0601 | H44: 21014.26968 | I44: 20476.99165 | J44: 20077.65918 | K44: 19483.48493 | M44: Equities | N44: =SUM(N42:N43) -> 17622.07175 | O44: 21415.81545 | P44: 21921.46876 | Q44: 21959.28654 | R44: 21881.57899 | S44: 21552.0601 | T44: 21014.26968 | U44: 20476.99165 | V44: 20077.65918 | W44: 19483.48493
A46: Liabilities and Equities | B46: =B40+B44 -> 57555.48061 | C46: 81556.19054 | D46: 82719.28448 | E46: 82442.50296 | F46: 81739.8799 | G46: 80224.08289 | H46: 78093.43625 | I46: 75964.58654 | J46: 74219.40584 | K46: 71932.02082 | M46: Liabilities and Equities | N46: =N40+N44 -> 57555.48061 | O46: 81556.19054 | P46: 82719.28448 | Q46: 82442.50296 | R46: 81739.8799 | S46: 80224.08289 | T46: 78093.43625 | U46: 75964.58654 | V46: 74219.40584 | W46: 71932.02082
A49: ROE Calculation | M49: ROE Calculation
A50: Net Fixed Assets (CIP) | B50: =B31 -> 57313.20011 | C50: =C31 -> 80778.90796 | D50: 81547.53155 | E50: 80996.59873 | F50: 80179.87919 | G50: 78613.86928 | H50: 76564.42723 | I50: 74435.3946 | J50: 72770.81159 | K50: 70446.21788 | M50: =A50 -> Net Fixed Assets (CIP) | N50: =N31 -> 57313.20011 | O50: =O31 -> 80778.90796 | P50: 81547.53155 | Q50: 80996.59873 | R50: 80179.87919 | S50: 78613.86928 | T50: 76564.42723 | U50: 74435.3946 | V50: 72770.81159 | W50: 70446.21788
A51: Net Fixed Assets (Out of CIP Scope) | B51: =B19 -> -691.5907519 | C51: =C19 -> -1326.520276 | D51: -1709.410185 | E51: 1281.5 | F51: 4256.6647 | G51: 8795.686096 | H51: 12260.35246 | I51: 13552.81128 | J51: 14953.35364 | K51: 16469.72831 | M51: =A51 -> Net Fixed Assets (Out of CIP Scope) | N51: =N19 -> -691.5907519 | O51: =O19 -> -1326.520276 | P51: -1709.410185 | Q51: =E51 -> 1281.5 | R51: =F51 -> 4256.6647 | S51: 8795.686096 | T51: 12260.35246 | U51: 13552.81128 | V51: 14953.35364 | W51: 16469.72831
A52: Accumulated Depreciation (Out of CIP Scope) | E52: =E20 -> -28.13666391 | F52: =SUM($E$20:F20) -> -125.0854197 | G52: =SUM($E$20:G20) -> -333.265611 | H52: =SUM($E$20:H20) -> -634.0347814 | I52: =SUM($E$20:I20) -> -977.8346263 | J52: =SUM($E$20:J20) -> -1373.472105 | K52: =SUM($E$20:K20) -> -1825.671639 | M52: Accumulated Depreciation (Out of CIP Scope) | Q52: =Q20 -> -28.13666391 | R52: =SUM($Q$20:R20) -> -125.0854197 | S52: =SUM($Q$20:S20) -> -333.265611 | T52: =SUM($Q$20:T20) -> -634.0347814 | U52: =SUM($Q$20:U20) -> -977.8346263 | V52: =SUM($Q$20:V20) -> -1373.472105 | W52: =SUM($Q$20:W20) -> -1825.671639
A53: Contribution from Grant | B53: =-B37 -> -8543.81793 | C53: =-C37 -> -21590.65328 | D53: =-D37 -> -21000.74459 | E53: =-E37 -> -20410.8359 | F53: =-F37 -> -19820.9272 | G53: =-G37 -> -19231.01851 | H53: =-H37 -> -18641.10982 | I53: =-I37 -> -18051.20113 | J53: =-J37 -> -17461.29244 | K53: =-K37 -> -16871.38375 | M53: Contribution from Grant | N53: =-N37 -> -8543.81793 | O53: =-O37 -> -21590.65328 | P53: =-P37 -> -21000.74459 | Q53: =-Q37 -> -20410.8359 | R53: =-R37 -> -19820.9272 | S53: =-S37 -> -19231.01851 | T53: =-T37 -> -18641.10982 | U53: =-U37 -> -18051.20113 | V53: =-V37 -> -17461.29244 | W53: =-W37 -> -16871.38375
A54: Net Fixed Assets (Total) | B54: =B50+B51+B53 -> 48077.79143 | C54: =C50+C51+C53 -> 57861.73441 | D54: =D50+D51+D53 -> 58837.37677 | E54: =E50+E51+E53+E52 -> 61839.12617 | F54: =F50+F51+F53+F52 -> 64490.53127 | G54: 67845.27125 | H54: 69549.63508 | I54: 68959.17012 | J54: 68889.40069 | K54: 68218.8908 | M54: Net Fixed Assets | N54: =N50+N51+N53 -> 48077.79143 | O54: =O50+O51+O53 -> 57861.73441 | P54: =P50+P51+P53 -> 58837.37677 | Q54: =Q50+Q51+Q53+Q52 -> 61839.12617 | R54: =R50+R51+R53+R52 -> 64490.53127 | S54: 67845.27125 | T54: 69549.63508 | U54: 68959.17012 | V54: 68889.40069 | W54: 68218.8908
A55: Allowance for Working Captial | B55: =B30 -> 180.8171279 | C55: =C30 -> 300.121572 | D55: =D30 -> 346.1818118 | E55: =E30 -> 412.2553225 | F55: =F30 -> 423.2118685 | G55: =G30 -> 483.982856 | H55: =H30 -> 449.6539209 | I55: =I30 -> 496.3388914 | J55: =J30 -> 461.7563601 | K55: =K30 -> 545.9573326 | M55: Allowance for Working Captial | N55: =N30 -> 180.8171279 | O55: =O30 -> 300.121572 | P55: =P30 -> 346.1818118 | Q55: =Q30 -> 412.2553225 | R55: =R30 -> 423.2118685 | S55: =S30 -> 483.982856 | T55: =T30 -> 449.6539209 | U55: =U30 -> 496.3388914 | V55: =V30 -> 461.7563601 | W55: =W30 -> 545.9573326
A56: Rate Base | B56: =SUM(B54:B55) -> 48258.60856 | C56: =SUM(C54:C55) -> 58161.85598 | D56: 59183.55859 | E56: 62251.3815 | F56: 64913.74314 | G56: 68329.2541 | H56: 69999.289 | I56: 69455.50901 | J56: 69351.15705 | K56: 68764.84813 | M56: Rate Base | N56: =SUM(N54:N55) -> 48258.60856 | O56: =SUM(O54:O55) -> 58161.85598 | P56: 59183.55859 | Q56: 62251.3815 | R56: 64913.74314 | S56: 68329.2541 | T56: 69999.289 | U56: 69455.50901 | V56: 69351.15705 | W56: 68764.84813
A58: Net Income (After Interest Expense) | B58: =B26 -> -901.8006118 | C58: =C26 -> -1278.059656 | D58: =D26 -> -691.6077936 | E58: =E26 -> -2037.86663 | F58: =F26 -> -559.877575 | G58: =G26 -> 458.0057684 | H58: =H26 -> 796.6004363 | I58: =I26 -> 877.7352867 | J58: =J26 -> 940.2875254 | K58: =K26 -> 848.2798661 | M58: Net Income (After Interest Expense) | N58: =N26 -> -901.8006118 | O58: =O26 -> -1278.059656 | P58: =P26 -> -691.6077936 | Q58: =Q26 -> -1618.838866 | R58: =R26 -> 255.0189072 | S58: =S26 -> 1592.306313 | T58: =T26 -> 2092.201466 | U58: =U26 -> 2201.518574 | V58: =V26 -> 2295.393364 | W58: =W26 -> 2231.476468
A61: ROE WACC Allocation (36%) | B61: =B56*0.36 -> 17373.09908 | C61: =C56*0.36 -> 20938.26815 | D61: 21306.08109 | E61: 22410.49734 | F61: 23368.94753 | G61: 24598.53148 | H61: 25199.74404 | I61: 25003.98324 | J61: 24966.41654 | K61: 24755.34533 | M61: ROE WACC Allocation (36%) | N61: =N56*0.36 -> 17373.09908 | O61: =O56*0.36 -> 20938.26815 | P61: 21306.08109 | Q61: 22410.49734 | R61: 23368.94753 | S61: 24598.53148 | T61: 25199.74404 | U61: 25003.98324 | V61: 24966.41654 | W61: 24755.34533
A62: ROE% | B62: =B58/B61 -> -0.05190787248 | C62: =C58/C61 -> -0.06103941581 | D62: -0.03246058206 | E62: -0.09093357455 | F62: -0.02395818529 | G62: 0.01861923216 | H62: 0.03161144951 | I62: 0.03510381838 | J62: 0.03766209396 | K62: 0.03426653334 | M62: ROE% | N62: =N58/N61 -> -0.05190787248 | O62: =O58/O61 -> -0.06103941581 | P62: -0.03246058206 | Q62: -0.07223574031 | R62: 0.0109127254 | S62: 0.06473176314 | T62: 0.08302471097 | U62: 0.08804671449 | V62: 0.09193924007 | W62: 0.09014119733
E66: =E19/E50 -> -0.02195603895 | F66: =F19/F50 -> -0.02277575581 | G66: -0.02366844258 | H66: -0.0245318535 | I66: -0.02536741919 | J66: -0.02645811021 | K66: -0.02745640521 | Q66: =Q19/Q50 -> -0.02195603895 | R66: =R19/R50 -> -0.02277575581 | S66: -0.02366844258 | T66: -0.0245318535 | U66: -0.02536741919 | V66: -0.02645811021 | W66: -0.02745640521

Sheet Rate Application (hidden)
B1: 2019 | C1: =B1+1 -> 2020 | D1: 2021 | E1: 2022 | F1: 2023 | G1: 2024 | H1: 2025 | I1: 2026 | J1: 2027 | K1: 2028
A2: CVVA Adjustment | B2: 0 | C2: 0 | D2: 73.53877561 | E2: 127.168859 | F2: 835.1747668 | G2: 1146.514059 | H2: 1360.952775 | I2: 1389.166079 | J2: 1421.551671 | K2: 1456.324618
A6: NON-ADJUSTED | B6: =B1 -> 2019 | C6: =C1 -> 2020 | D6: 2021 | E6: 2022 | F6: 2023 | G6: 2024 | H6: 2025 | I6: 2026 | J6: 2027 | K6: 2028
A8: Income Statement
A9: Non-distribution Revenue | B9: 318.8792648 | C9: 1273.195539 | D9: 2046.559935 | E9: 2677.668271 | F9: 3093.303448 | G9: 3390.654054 | H9: 3497.34777 | I9: 3543.60504 | J9: 3587.933854 | K9: 3627.350232
A10: Less: Non-distribution Cost | B10: -318.8792648 | C10: -1273.195539 | D10: -2046.559935 | E10: -2677.668271 | F10: -3093.303448 | G10: -3390.654054 | H10: -3497.34777 | I10: -3543.60504 | J10: -3587.933854 | K10: -3627.350232
A11: Net Non-distribution Revenue | B11: =SUM(B9:B10) -> 0 | C11: 0 | D11: 0 | E11: 0 | F11: 0 | G11: 0 | H11: 0 | I11: 0 | J11: 0 | K11: 0
A13: Distribution Revenue
A14: Rate 1 | B14: 315.7907923 | C14: 1609.050437 | D14: 2863.928027 | E14: 3717.559779 | F14: 4348.894278 | G14: 4795.033697 | H14: 5001.971368 | I14: 5109.955508 | J14: 5211.433728 | K14: 5298.991843
A15: Rate 6 | B15: 57.8041222 | C15: 234.4736532 | D15: 468.6701682 | E15: 712.05377 | F15: 873.2903511 | G15: 953.0120815 | H15: 992.677498 | I15: 1005.284502 | J15: 1018.051615 | K15: 1030.980871
A16: Rate 11 | B16: 26.17873339 | C16: 54.26195142 | D16: 121.3944868 | E16: 207.2571183 | F16: 227.139293 | G16: 230.023962 | H16: 232.9452663 | I16: 235.9036712 | J16: 238.8996478 | K16: 241.9336733
A17: Rate 16 | B17: 189.5838093 | C17: 1151.949142 | D17: 1166.578896 | E17: 1181.394448 | F17: 1196.398158 | G17: 1211.592414 | H17: 1226.979638 | I17: 1242.562279 | J17: 1258.34282 | K17: 1274.323774
A18: Total Distribution Revenue | B18: =SUM(B14:B17) -> 589.3574572 | C18: =SUM(C14:C17) -> 3049.735184 | D18: 4620.571579 | E18: 5818.265115 | F18: 6645.722079 | G18: 7189.662155 | H18: 7454.57377 | I18: 7593.705961 | J18: 7726.727811 | K18: 7846.230162
A20: Less: Distribution O&M | B20: -555.3495733 | C20: -1442.886221 | D20: -1715.428071 | E20: -1813.254908 | F20: -1894.890929 | G20: -2067.255337 | H20: -2103.156458 | I20: -2136.736822 | J20: -2170.608205 | K20: -2460.716292
A21: Property Taxes | B21: -331.2186812 | C21: -490.1762393 | D21: -546.7012192 | E21: -565.324383 | F21: -581.5868961 | G21: -590.0554385 | H21: -623.7409517 | I21: -626.2768862 | J21: -628.7596173 | K21: -630.0247608
A22: EBITDA | B22: =SUM(B18:B21)+B11 -> -297.2107973 | C22: =SUM(C18:C21)+C11 -> 1116.672723 | D22: 2358.442288 | E22: 3439.685824 | F22: 4169.244254 | G22: 4532.35138 | H22: 4727.67636 | I22: 4830.692253 | J22: 4927.359989 | K22: 4755.489109
A24: Less: Depreciation | B24: -691.5907519 | C24: -1326.520276 | D24: -1709.410185 | E24: -1778.364476 | F24: -1826.157349 | G24: -1860.667851 | H24: -1878.267312 | I24: -1888.233857 | J24: -1925.378153 | K24: -1934.199903
A25: Add: Capitalized IDC | B25: 650.5156319 | C25: 180.1327785 | D25: 45.19014708 | E25: 26.76904116 | F25: 23.55803753 | G25: 13.02948026 | H25: 6.16786305 | I25: 5.14231567 | J25: 12.53068862 | K25: 2.938812267
A26: EBIT | B26: =SUM(B24:B25)+B22 -> -338.2859173 | C26: -29.71477419 | D26: 694.2222503 | E26: 1688.090389 | F26: 2366.644942 | G26: 2684.713009 | H26: 2855.576912 | I26: 2947.600711 | J26: 3014.512524 | K26: 2824.228017
A28: Less: Interest Expense | B28: -563.5146945 | C28: -1248.344882 | D28: -1385.830044 | E28: -1403.209042 | F28: -1401.933455 | G28: -1388.911259 | H28: -1361.176634 | I28: -1326.798334 | J28: -1296.847612 | K28: -1265.077475
A29: Less: Cash Tax | B29: 0 | C29: 0 | D29: 0 | E29: 0 | F29: 0 | G29: 0 | H29: 0 | I29: 0 | J29: 0 | K29: 0
A30: Net Income | B30: =SUM(B28:B29)+B26 -> -901.8006118 | C30: -1278.059656 | D30: -691.6077936 | E30: 284.8813472 | F30: 964.7114866 | G30: 1295.80175 | H30: 1494.400277 | I30: 1620.802377 | J30: 1717.664912 | K30: 1559.150542
A32: Balance Sheet
A33: Cash | B33: 0 | C33: 2.910383046e-11 | D33: 1.455191523e-11 | E33: 2.50111043e-12 | F33: 2.50111043e-12 | G33: -1.341504685e-11 | H33: 7.048583939e-12 | I33: 1.750777301e-11 | J33: -1.29602995e-11 | K33: 1.38697942e-11
A34: NWC | B34: 180.8171279 | C34: 300.121572 | D34: 346.1818118 | E34: 412.2553225 | F34: 423.2118685 | G34: 483.982856 | H34: 449.6539209 | I34: 496.3388914 | J34: 461.7563601 | K34: 545.9573326
A35: PP&E | B35: 57313.20011 | C35: 80778.90796 | D35: 81547.53155 | E35: 80996.59873 | F35: 80179.87919 | G35: 78613.86928 | H35: 76564.42723 | I35: 74435.3946 | J35: 72770.81159 | K35: 70446.21788
A36: Assets | B36: =SUM(B33:B35) -> 57494.01724 | C36: 81079.02953 | D36: 81893.71336 | E36: 81408.85406 | F36: 80603.09106 | G36: 79097.85213 | H36: 77014.08115 | I36: 74931.73349 | J36: 73232.56795 | K36: 70992.17522
A38: Deferred Revenue | B38: 61.4633637 | C38: 477.1610083 | D38: 825.5711225 | E38: 1033.648905 | F38: 1136.78884 | G38: 1126.230758 | H38: 1079.355099 | I38: 1032.853054 | J38: 986.8378888 | K38: 939.8456084
A39: Assets and Regulatory Assets | B39: =B36+B38 -> 57555.48061 | C39: 81556.19054 | D39: 82719.28448 | E39: 82442.50296 | F39: 81739.8799 | G39: 80224.08289 | H39: 78093.43625 | I39: 75964.58654 | J39: 74219.40584 | K39: 71932.02082
A41: Contribution from Grant | B41: 8543.81793 | C41: 21590.65328 | D41: 21000.74459 | E41: 20410.8359 | F41: 19820.9272 | G41: 19231.01851 | H41: 18641.10982 | I41: 18051.20113 | J41: 17461.29244 | K41: 16871.38375
A42: ST Operating Debt | B42: 1958.007972 | C42: 2379.53505 | D42: 2435.718751 | E42: 2439.920726 | F42: 2431.286554 | G42: 2394.673345 | H42: 2334.918853 | I42: 2275.221294 | J42: 2230.85102 | K42: 2164.831659
A43: LT Debt | B43: 29431.58295 | C43: 36170.18676 | D43: 37361.35239 | E43: 37632.4598 | F43: 37606.08716 | G43: 37046.33093 | H43: 36103.13789 | I43: 35161.17247 | J43: 34449.6032 | K43: 33412.32049
A44: Liabilities | B44: =SUM(B41:B43) -> 39933.40885 | C44: 60140.37509 | D44: 60797.81572 | E44: 60483.21642 | F44: 59858.30091 | G44: 58672.02279 | H44: 57079.16657 | I44: 55487.59489 | J44: 54141.74666 | K44: 52448.5359
A46: Retained Earnings | B46: -901.8006118 | C46: -2179.860268 | D46: -2871.468061 | E46: -2586.586714 | F46: -1621.875228 | G46: -326.0734774 | H46: 1168.3268 | I46: 2789.129176 | J46: 4506.794088 | K46: 6065.944631
A47: Share Capital | B47: 18523.87236 | C47: 23595.67572 | D47: 24792.93682 | E47: 24545.87325 | F47: 23503.45422 | G47: 21878.13358 | H47: 19845.94288 | I47: 17687.86247 | J47: 15570.8651 | K47: 13417.5403
A48: Equities | B48: =SUM(B46:B47) -> 17622.07175 | C48: 21415.81545 | D48: 21921.46876 | E48: 21959.28654 | F48: 21881.57899 | G48: 21552.0601 | H48: 21014.26968 | I48: 20476.99165 | J48: 20077.65918 | K48: 19483.48493
A50: Liabilities and Equities | B50: =B44+B48 -> 57555.48061 | C50: 81556.19054 | D50: 82719.28448 | E50: 82442.50296 | F50: 81739.8799 | G50: 80224.08289 | H50: 78093.43625 | I50: 75964.58654 | J50: 74219.40584 | K50: 71932.02082
A53: ROE Calculation
A54: Gross Fixed Assets | B54: =B35 -> 57313.20011 | C54: =C35 -> 80778.90796 | D54: 81547.53155 | E54: 80996.59873 | F54: 80179.87919 | G54: 78613.86928 | H54: 76564.42723 | I54: 74435.3946 | J54: 72770.81159 | K54: 70446.21788
A55: Less:Depreciation | B55: =B24 -> -691.5907519 | C55: =C24 -> -1326.520276 | D55: -1709.410185 | E55: -1778.364476 | F55: -1826.157349 | G55: -1860.667851 | H55: -1878.267312 | I55: -1888.233857 | J55: -1925.378153 | K55: -1934.199903
A56: Contribution from Grant | B56: =-B41 -> -8543.81793 | C56: =-C41 -> -21590.65328 | D56: -21000.74459 | E56: -20410.8359 | F56: -19820.9272 | G56: -19231.01851 | H56: -18641.10982 | I56: -18051.20113 | J56: -17461.29244 | K56: -16871.38375
A57: Net Fixed Assets | B57: =B54+B55+B56 -> 48077.79143 | C57: =C54+C55+C56 -> 57861.73441 | D57: 58837.37677 | E57: 58807.39836 | F57: 58532.79464 | G57: 57522.18291 | H57: 56045.05009 | I57: 54495.95961 | J57: 53384.141 | K57: 51640.63423
A58: Allowance for Working Captial | B58: =B34 -> 180.8171279 | C58: =C34 -> 300.121572 | D58: 346.1818118 | E58: 412.2553225 | F58: 423.2118685 | G58: 483.982856 | H58: 449.6539209 | I58: 496.3388914 | J58: 461.7563601 | K58: 545.9573326
A59: Rate Base | B59: =SUM(B57:B58) -> 48258.60856 | C59: =SUM(C57:C58) -> 58161.85598 | D59: 59183.55859 | E59: 59219.65368 | F59: 58956.00651 | G59: 58006.16577 | H59: 56494.70401 | I59: 54992.2985 | J59: 53845.89736 | K59: 52186.59156
A61: Net Income (After Interest Expense) | B61: =B30 -> -901.8006118 | C61: =C30 -> -1278.059656 | D61: -691.6077936 | E61: 284.8813472 | F61: 964.7114866 | G61: 1295.80175 | H61: 1494.400277 | I61: 1620.802377 | J61: 1717.664912 | K61: 1559.150542
A64: ROE WACC Allocation (36%) | B64: =B59*0.36 -> 17373.09908 | C64: =C59*0.36 -> 20938.26815 | D64: 21306.08109 | E64: 21319.07533 | F64: 21224.16234 | G64: 20882.21968 | H64: 20338.09344 | I64: 19797.22746 | J64: 19384.52305 | K64: 18787.17296
A65: ROE% | B65: =B61/B64 -> -0.05190787248 | C65: =C61/C64 -> -0.06103941581 | D65: -0.03246058206 | E65: 0.01336274406 | F65: 0.04545345399 | G65: 0.06205287419 | H65: 0.07347789414 | I65: 0.08187016995 | J65: 0.08861011993 | K65: 0.08299016279

Sheet Exhibit 5 (hidden)
A1: EXHIBIT 5 - Capital Structure and Cost of Capital
C3: Capital Structure
C5: Col. 1 | D5: Col. 2
C6: Capital Component | D6: Weighting
B7: Row 1 | C7: Equity | D7: 0.36
B8: Row 2 | C8: Long-term Debt | D8: 0.6
B9: Row 3 | C9: Short-term Debt | D9: 0.04
C12: Cost of Capital
C14: Col. 1 | D14: Col. 2
C15: Capital Component | D15: Annual Cost
B16: Row 1 | C16: Equity | D16: 0.0878
B17: Row 2 | C17: Long-term Debt | D17: 0.0372
B18: Row 3 | C18: Short-term Debt | D18: 0.0176
B19: Row 4 | C19: WACC | D19: 0.054632

Sheet ROE Summary
B1: 2019 | C1: 2020 | D1: 2021 | E1: 2022 | F1: 2023 | G1: 2024 | H1: 2025 | I1: 2026 | J1: 2027 | K1: 2028
A2: ROE Rate Application | B2: ='Rate Application'!B65 -> -0.05190787248 | C2: ='Rate Application'!C65 -> -0.06103941581 | D2: ='Rate Application'!D65 -> -0.03246058206 | E2: ='Rate Application'!E65 -> 0.01336274406 | F2: ='Rate Application'!F65 -> 0.04545345399 | G2: ='Rate Application'!G65 -> 0.06205287419 | H2: ='Rate Application'!H65 -> 0.07347789414 | I2: ='Rate Application'!I65 -> 0.08187016995 | J2: ='Rate Application'!J65 -> 0.08861011993 | K2: ='Rate Application'!K65 -> 0.08299016279
A4: ROE (Without CVVA) | B4: ='2019-2021'!D30 -> -41.60545773 | C4: ='2019-2021'!E30 -> -0.3216749821 | D4: ='2019-2021'!F30 -> -0.139900629 | E4: ='2022-2028'!E62 -> -0.09093357455 | F4: ='2022-2028'!F62 -> -0.02395818529 | G4: ='2022-2028'!G62 -> 0.01861923216 | H4: ='2022-2028'!H62 -> 0.03161144951 | I4: ='2022-2028'!I62 -> 0.03510381838 | J4: ='2022-2028'!J62 -> 0.03766209396 | K4: ='2022-2028'!K62 -> 0.03426653334
A5: ROE (With CVVA) | B5: =B4 -> -41.60545773 | C5: =C4 -> -0.3216749821 | D5: ='2019-2021'!H30 -> -0.1344009119 | E5: ='2022-2028'!Q62 -> -0.07223574031 | F5: ='2022-2028'!R62 -> 0.0109127254 | G5: ='2022-2028'!S62 -> 0.06473176314 | H5: ='2022-2028'!T62 -> 0.08302471097 | I5: ='2022-2028'!U62 -> 0.08804671449 | J5: ='2022-2028'!V62 -> 0.09193924007 | K5: ='2022-2028'!W62 -> 0.09014119733
A6: Variance | B6: =B5-B4 -> 0 | C6: =C5-C4 -> 0 | D6: 0.005499717097 | E6: 0.01869783423 | F6: 0.03487091069 | G6: 0.04611253098 | H6: 0.05141326146 | I6: 0.0529428961 | J6: 0.05427714611 | K6: 0.05587466399

Sheet CVVA Summary
C1: 2021 | D1: =C1+1 -> 2022 | E1: =D1+1 -> 2023 | F1: 2024 | G1: 2025 | H1: 2026 | I1: 2027 | J1: 2028 | L1: SUM
C2: ACTUAL | D2: ESTIMATE | E2: FORECAST | F2: FORECAST | G2: FORECAST | H2: FORECAST | I2: FORECAST | J2: FORECAST
A3: R1 RES | B3: NAC REV | C3: 712871.4251 | D3: 1826041.852 | E3: 2975357.94 | F3: 4050974.743 | G3: 4500916.782 | H3: 4600675.625 | I3: 4712534.095 | J3: 4817055.052 | L3: =SUM(C5:J5) -> 7768287.353
B4: CIP REV | C4: 842161.2062 | D4: 2316477.773 | E4: 3776447.51 | F4: 5170089.374 | G4: 5764585.086 | H4: 5891911.614 | I4: 6034168.703 | J4: 6168873.602
B5: DIFFERENCE | C5: =C4-C3 -> 129289.7811 | D5: 490435.9205 | E5: 801089.5695 | F5: 1119114.63 | G5: 1263668.304 | H5: 1291235.989 | I5: 1321634.608 | J5: 1351818.55
A6: R1 COM | B6: NAC REV | C6: 17501.73451 | D6: 72540.79527 | E6: 126185.9493 | F6: 163354.8197 | G6: 185592.7297 | H6: 189909.0312 | I6: 194312.7683 | J6: 198575.0081 | L6: =SUM(C8:J8) -> 110791.26
B7: CIP REV | C7: 23095.18292 | D7: 78830.1578 | E7: 137314.6818 | F7: 178523.6998 | G7: 203129.9013 | H7: 207851.0984 | I7: 212667.8961 | J7: 217351.478
B8: DIFFERENCE | C8: =C7-C6 -> 5593.44841 | D8: 6289.362529 | E8: 11128.73252 | F8: 15168.88011 | G8: 17537.17162 | H8: 17942.06721 | I8: 18355.12774 | J8: 18776.4699
A9: R1 Ag | B9: NAC REV | D9: 4921.846987 | E9: 10343.70329 | F9: 12922.71003 | G9: 13107.37355 | H9: 13294.80703 | I9: 13485.052 | J9: 13678.15066 | L9: =SUM(C11:J11) -> -26864.97273
B10: CIP REV | D10: 2608.244028 | E10: 7134.557696 | F10: 8773.655542 | G10: 8899.512623 | H10: 9027.25756 | I10: 9156.918672 | J10: 9288.5247
B11: DIFFERENCE | D11: =D10-D9 -> -2313.602959 | E11: =E10-E9 -> -3209.145595 | F11: -4149.054488 | G11: -4207.860929 | H11: -4267.549467 | I11: -4328.133332 | J11: -4389.625956
A12: R6 M COMM | B12: NAC REV | C12: 7403.790381 | D12: 56592.46901 | E12: 125630.8923 | F12: 171657.6721 | G12: 180430.9476 | H12: 183062.6773 | I12: 186708.2777 | J12: 195982.9629 | L12: =SUM(C14:J14) -> 198725.3958
B13: CIP REV | C13: 10754.68661 | D13: 66371.41588 | E13: 148684.5835 | F13: 202138.589 | G13: 212339.2569 | H13: 215432.5379 | I13: 219844.6622 | J13: 230629.3532
B14: DIFFERENCE | C14: =C13-C12 -> 3350.89623 | D14: =D13-D12 -> 9778.946865 | E14: =E13-E12 -> 23053.69118 | F14: 30480.9169 | G14: 31908.30926 | H14: 32369.86056 | I14: 33136.38455 | J14: 34646.39028
A15: R6 L COMM | B15: NAC REV | C15: 37739.66627 | D15: 174905.2718 | E15: 273622.5522 | F15: 372851.0797 | G15: 364863.7558 | H15: 370153.8906 | I15: 375523.3775 | J15: 474385.8352 | L15: =SUM(C17:J17) -> -204039.0408
B16: CIP REV | C16: 20493.98777 | D16: 89742.4092 | E16: 256456.1868 | F16: 346536.2517 | G16: 351558.8614 | H16: 356656.8103 | I16: 361831.2284 | J16: 456730.6527
B17: DIFFERENCE | C17: =C16-C15 -> -17245.6785 | D17: =D16-D15 -> -85162.86257 | E17: =E16-E15 -> -17166.36537 | F17: -26314.82803 | G17: -13304.8944 | H17: -13497.08032 | I17: -13692.14904 | J17: -17655.18252
A19: TOTAL | B19: NAC REV | C19: =SUM(C3,C6,C9,C12,C15) -> 775516.6162 | D19: 2135002.235 | E19: 3511141.037 | F19: 4771761.025 | G19: 5244911.589 | H19: 5357096.031 | I19: 5482563.57 | J19: 5699677.009 | L19: =SUM(C21:J21) -> 7846899.995
B20: CIP REV | C20: 896505.0635 | D20: 2554029.999 | E20: 4326037.519 | F20: 5906061.57 | G20: 6540512.618 | H20: 6680879.319 | I20: 6837669.408 | J20: 7082873.611
B21: DIFFERENCE | C21: 120988.4472 | D21: 419027.7643 | E21: 814896.4822 | F21: 1134300.545 | G21: 1295601.029 | H21: 1323783.287 | I21: 1355105.838 | J21: 1383196.602

Sheet Check (hidden)
A2: Rate Case | B2: 2019 | C2: 2020 | D2: 2021 | E2: 2022 | F2: 2023 | G2: 2024 | H2: 2025 | I2: 2026 | J2: 2027 | K2: 2028 | L2: Total - 2023-2028 | Q2: 2023-2028 | R2: Rate App | S2: CIP Revenues | T2: Var | U2: NAC Revenues | V2: Var
A3: Rate 1 | B3: ='Rate Application'!B14 -> 315.7907923 | C3: ='Rate Application'!C14 -> 1609.050437 | D3: ='Rate Application'!D14 -> 2863.928027 | E3: ='Rate Application'!E14 -> 3717.559779 | F3: ='Rate Application'!F14 -> 4348.894278 | G3: ='Rate Application'!G14 -> 4795.033697 | H3: ='Rate Application'!H14 -> 5001.971368 | I3: ='Rate Application'!I14 -> 5109.955508 | J3: ='Rate Application'!J14 -> 5211.433728 | K3: ='Rate Application'!K14 -> 5298.991843 | L3: =SUM(F3:K3) -> 29766.28042 | Q3: Rate 1 | R3: =L3 -> 29766.28042 | S3: =L11 -> 34015.19507 | T3: =S3-R3 -> 4248.914649 | U3: =L27 -> 26792.27634 | V3: =U3-R3 -> -2974.004081
A4: Rate 6 | B4: ='Rate Application'!B15 -> 57.8041222 | C4: ='Rate Application'!C15 -> 234.4736532 | D4: ='Rate Application'!D15 -> 468.6701682 | E4: ='Rate Application'!E15 -> 712.05377 | F4: ='Rate Application'!F15 -> 873.2903511 | G4: ='Rate Application'!G15 -> 953.0120815 | H4: ='Rate Application'!H15 -> 992.677498 | I4: ='Rate Application'!I15 -> 1005.284502 | J4: ='Rate Application'!J15 -> 1018.051615 | K4: ='Rate Application'!K15 -> 1030.980871 | L4: =SUM(F4:K4) -> 5873.296919 | Q4: Rate 6 | R4: =L4 -> 5873.296919 | S4: =L12 -> 3358.838974 | T4: =S4-R4 -> -2514.457945 | U4: =L28 -> 3274.873921 | V4: =U4-R4 -> -2598.422998
A5: Rate 11 | B5: ='Rate Application'!B16 -> 26.17873339 | C5: ='Rate Application'!C16 -> 54.26195142 | D5: ='Rate Application'!D16 -> 121.3944868 | E5: ='Rate Application'!E16 -> 207.2571183 | L5: 0 | Q5: Total | R5: =SUM(R3:R4) -> 35639.57734 | S5: =SUM(S3:S4) -> 37374.03405 | T5: 1734.456704 | U5: =SUM(U3:U4) -> 30067.15026 | V5: =U5-R5 -> -5572.42708
A6: Rate 16 | B6: ='Rate Application'!B17 -> 189.5838093 | C6: ='Rate Application'!C17 -> 1151.949142 | D6: ='Rate Application'!D17 -> 1166.578896 | E6: ='Rate Application'!E17 -> 1181.394448 | L6: 0
B7: =SUM(B3:B6) -> 589.3574572 | C7: =SUM(C3:C6) -> 3049.735184 | D7: 4620.571579 | E7: 5818.265115 | F7: 5222.184629 | G7: 5748.045779 | H7: 5994.648866 | I7: 6115.24001 | J7: 6229.485343 | K7: 6329.972714 | L7: 35639.57734
A10: CIP Revenue | F10: 2023 | G10: 2024 | H10: 2025 | I10: 2026 | J10: 2027 | K10: 2028 | L10: Total - 2023-2028
A11: Rate 1 | F11: =('CVVA Summary'!E4+'CVVA Summary'!E7+'CVVA Summary'!E10)/1000 -> 3920.896749 | G11: =('CVVA Summary'!F4+'CVVA Summary'!F7+'CVVA Summary'!F10)/1000 -> 5357.386729 | H11: =('CVVA Summary'!G4+'CVVA Summary'!G7+'CVVA Summary'!G10)/1000 -> 5976.6145 | I11: =('CVVA Summary'!H4+'CVVA Summary'!H7+'CVVA Summary'!H10)/1000 -> 6108.78997 | J11: =('CVVA Summary'!I4+'CVVA Summary'!I7+'CVVA Summary'!I10)/1000 -> 6255.993518 | K11: =('CVVA Summary'!J4+'CVVA Summary'!J7+'CVVA Summary'!J10)/1000 -> 6395.513605 | L11: =SUM(B11:K11) -> 34015.19507
A12: Rate 6 | F12: =('CVVA Summary'!E13+'CVVA Summary'!E16)/1000 -> 405.1407703 | G12: =('CVVA Summary'!F13+'CVVA Summary'!F16)/1000 -> 548.6748407 | H12: =('CVVA Summary'!G13+'CVVA Summary'!G16)/1000 -> 563.8981183 | I12: =('CVVA Summary'!H13+'CVVA Summary'!H16)/1000 -> 572.0893482 | J12: =('CVVA Summary'!I13+'CVVA Summary'!I16)/1000 -> 581.6758906 | K12: =('CVVA Summary'!J13+'CVVA Summary'!J16)/1000 -> 687.3600059 | L12: =SUM(B12:K12) -> 3358.838974
A13: Rate 11 | L13: 0
A14: Rate 16 | L14: 0
F15: =SUM(F11:F14) -> 4326.037519 | G15: =SUM(G11:G14) -> 5906.06157 | H15: =SUM(H11:H14) -> 6540.512618 | I15: =SUM(I11:I14) -> 6680.879319 | J15: =SUM(J11:J14) -> 6837.669408 | K15: =SUM(K11:K14) -> 7082.873611 | L15: =SUM(L11:L14) -> 37374.03405
A18: Variance | F18: 2023 | G18: 2024 | H18: 2025 | I18: 2026 | J18: 2027 | K18: 2028 | L18: Total - 2023-2028
A19: Rate 1 | F19: =F11-F3 -> -427.9975285 | G19: =G11-G3 -> 562.3530317 | H19: 974.6431321 | I19: 998.8344622 | J19: 1044.55979 | K19: 1096.521762 | L19: =SUM(B19:K19) -> 4248.914649
A20: Rate 6 | F20: =F12-F4 -> -468.1495808 | G20: -404.3372408 | H20: -428.7793797 | I20: -433.1951541 | J20: -436.3757248 | K20: -343.620865 | L20: =SUM(B20:K20) -> -2514.457945
A21: Rate 11 | L21: 0
A22: Rate 16 | L22: 0
F23: =SUM(F19:F22) -> -896.1471093 | G23: =SUM(G19:G22) -> 158.0157908 | H23: =SUM(H19:H22) -> 545.8637524 | I23: =SUM(I19:I22) -> 565.6393082 | J23: =SUM(J19:J22) -> 608.1840655 | K23: =SUM(K19:K22) -> 752.9008967 | L23: =SUM(L19:L22) -> 1734.456704
A26: NAC Revenue | F26: 2023 | G26: 2024 | H26: 2025 | I26: 2026 | J26: 2027 | K26: 2028 | L26: Total - 2023-2028
A27: Rate 1 | F27: =('CVVA Summary'!E3+'CVVA Summary'!E6+'CVVA Summary'!E9)/1000 -> 3111.887593 | G27: =('CVVA Summary'!F3+'CVVA Summary'!F6+'CVVA Summary'!F9)/1000 -> 4227.252273 | H27: =('CVVA Summary'!G3+'CVVA Summary'!G6+'CVVA Summary'!G9)/1000 -> 4699.616885 | I27: =('CVVA Summary'!H3+'CVVA Summary'!H6+'CVVA Summary'!H9)/1000 -> 4803.879464 | J27: =('CVVA Summary'!I3+'CVVA Summary'!I6+'CVVA Summary'!I9)/1000 -> 4920.331915 | K27: =('CVVA Summary'!J3+'CVVA Summary'!J6+'CVVA Summary'!J9)/1000 -> 5029.308211 | L27: =SUM(B27:K27) -> 26792.27634
A28: Rate 6 | F28: =('CVVA Summary'!E12+'CVVA Summary'!E15)/1000 -> 399.2534444 | G28: =('CVVA Summary'!F12+'CVVA Summary'!F15)/1000 -> 544.5087518 | H28: =('CVVA Summary'!G12+'CVVA Summary'!G15)/1000 -> 545.2947034 | I28: =('CVVA Summary'!H12+'CVVA Summary'!H15)/1000 -> 553.2165679 | J28: =('CVVA Summary'!I12+'CVVA Summary'!I15)/1000 -> 562.2316551 | K28: =('CVVA Summary'!J12+'CVVA Summary'!J15)/1000 -> 670.3687981 | L28: =SUM(B28:K28) -> 3274.873921
A29: Rate 11 | F29: =F13 -> 0 | G29: =G13 -> 0 | H29: 0 | I29: 0 | J29: 0 | K29: 0 | L29: 0
A30: Rate 16 | F30: =F14 -> 0 | G30: =G14 -> 0 | H30: 0 | I30: 0 | J30: 0 | K30: 0 | L30: 0
F31: =SUM(F27:F30) -> 3511.141037 | G31: =SUM(G27:G30) -> 4771.761025 | H31: =SUM(H27:H30) -> 5244.911589 | I31: =SUM(I27:I30) -> 5357.096031 | J31: =SUM(J27:J30) -> 5482.56357 | K31: =SUM(K27:K30) -> 5699.677009 | L31: =SUM(L27:L30) -> 30067.15026
A34: Variance | F34: 2023 | G34: 2024 | H34: 2025 | I34: 2026 | J34: 2027 | K34: 2028 | L34: Total - 2023-2028
A35: Rate 1 | F35: =F27-F3 -> -1237.006685 | G35: =G27-G3 -> -567.7814243 | H35: -302.3544822 | I35: -306.0760446 | J35: -291.1018126 | K35: -269.6836327 | L35: =SUM(B35:K35) -> -2974.004081
A36: Rate 6 | F36: =F28-F4 -> -474.0369066 | G36: -408.5033297 | H36: -447.3827946 | I36: -452.0679343 | J36: -455.8199603 | K36: -360.6120728 | L36: =SUM(B36:K36) -> -2598.422998
A37: Rate 11 | L37: 0
A38: Rate 16 | L38: 0
F39: =SUM(F35:F38) -> -1711.043592 | G39: =SUM(G35:G38) -> -976.284754 | H39: =SUM(H35:H38) -> -749.7372768 | I39: =SUM(I35:I38) -> -758.1439789 | J39: =SUM(J35:J38) -> -746.9217729 | K39: =SUM(K35:K38) -> -630.2957055 | L39: =SUM(L35:L38) -> -5572.42708
